bitfinex-derivatives/quotes_BTCF0:USTF0_20251011
["timestamp","ask_amount","ask_price","bid_price","bid_amount"]
[1760177875906,0.50437307,111810.0,111800.0,0.52052877]
[1760177876208,0.52604307,111810.0,111800.0,0.52052877]
[1760177877108,0.50768264,111810.0,111800.0,0.52052877]
[1760177877508,0.07322264,111810.0,111800.0,0.54775877]
[1760177877708,0.01262,111820.0,111810.0,0.112197]
[1760177878006,0.03429,111820.0,111810.0,0.472997]
[1760177878206,0.03429,111820.0,111810.0,0.510177]
[1760177878809,0.03429,111820.0,111810.0,0.512177]
[1760177879405,0.01262,111830.0,111820.0,0.089349]
[1760177879611,0.01262,111830.0,111820.0,0.472989]
[1760177879811,0.03429,111830.0,111820.0,0.510169]
[1760177880611,0.03429,111840.0,111830.0,0.112181]
[1760177880807,0.10596286,111850.0,111840.0,0.112173]
[1760177881002,0.07150286,111850.0,111840.0,0.517643]
[1760177881208,0.73898498,111860.0,111850.0,0.1121651]
[1760177881408,0.73898498,111860.0,111850.0,0.4729651]
[1760177882109,0.71731498,111860.0,111850.0,0.92515901]
[1760177882303,0.77675742,111860.0,111850.0,0.92515901]
[1760177882505,0.03446,111870.0,111860.0,0.1121571]
[1760177882704,0.03446,111880.0,111870.0,0.1121491]
[1760177882913,0.03446,111880.0,111870.0,0.4729491]
[1760177883115,0.03446,111880.0,111870.0,0.92514301]
[1760177883316,0.72955374,111880.0,111870.0,0.92514301]
[1760177883612,0.03446,111880.0,111870.0,0.92514301]
[1760177884214,0.01279,111880.0,111870.0,0.92514301]
[1760177884513,0.03446,111880.0,111870.0,0.92514301]
[1760177886219,0.10444342,111880.0,111870.0,0.92514301]
[1760177886516,0.06998342,111880.0,111870.0,0.92514301]
[1760177886717,0.01279,111890.0,111880.0,0.1121411]
[1760177886914,0.01279,111890.0,111880.0,0.4729411]
[1760177887112,0.03446,111900.0,111890.0,0.1121331]
[1760177887815,0.05686587,111900.0,111890.0,0.1121331]
[1760177888011,0.05686587,111900.0,111890.0,0.15619488]
[1760177888611,0.05786587,111900.0,111890.0,0.15619488]
[1760177888915,0.05786587,111900.0,111890.0,0.93200879]
[1760177889114,0.03546,111900.0,111890.0,0.93200879]
[1760177889314,0.03646,111900.0,111890.0,0.93200879]
[1760177889514,0.1075238,111900.0,111890.0,0.93200879]
[1760177889910,0.5065238,111900.0,111890.0,0.96918879]
[1760177890118,0.1065238,111900.0,111890.0,0.96918879]
[1760177890314,0.1065238,111900.0,111890.0,0.10408178]
[1760177890519,0.4673238,111900.0,111890.0,0.19337488]
[1760177890716,0.1065238,111900.0,111890.0,0.19337488]
[1760177891017,0.1065238,111900.0,111890.0,0.55417488]
[1760177891717,0.1055238,111900.0,111890.0,0.19337488]
[1760177892415,0.1055238,111900.0,111890.0,0.55417488]
[1760177896622,0.0710638,111900.0,111890.0,0.55417488]
[1760177896817,0.03446,111910.0,111900.0,0.1121251]
[1760177897012,0.37359,111920.0,111910.0,0.0892771]
[1760177897321,0.39526,111930.0,111920.0,0.1121092]
[1760177897621,0.46746859,111930.0,111920.0,0.1121092]
[1760177897821,0.46746859,111930.0,111920.0,0.1492892]
[1760177898412,0.46746859,111930.0,111920.0,0.06002]
[1760177898616,0.55672979,111930.0,111920.0,0.06002]
[1760177898817,0.55872979,111930.0,111920.0,0.06002]
[1760177900520,0.1237292,111920.0,111910.0,0.38364]
[1760177900721,0.1237292,111920.0,111910.0,0.42082]
[1760177900922,0.03446,111920.0,111910.0,0.5100972]
[1760177902728,0.01279,111920.0,111910.0,0.92511111]
[1760177902927,0.44579859,111930.0,111920.0,0.1121092]
[1760177902928,0.46746859,111930.0,111920.0,0.1121092]
[1760177903128,0.46746859,111930.0,111920.0,0.5100892]
[1760177903129,0.10666859,111930.0,111920.0,0.5100892]
[1760177904029,0.10866859,111930.0,111920.0,0.5100892]
[1760177904526,0.07420859,111930.0,111920.0,0.9100892]
[1760177904725,0.07420859,111930.0,111920.0,0.9175792]
[1760177907622,0.11052859,111930.0,111920.0,0.42082]
[1760177907823,0.11052859,111930.0,111920.0,0.5100892]
[1760177911432,0.08816859,111930.0,111920.0,0.5100892]
[1760177911631,0.07420859,111930.0,111920.0,0.9175792]
[1760177912432,0.07420859,111930.0,111920.0,1.32510311]
[1760177912634,0.07420859,111930.0,111920.0,1.33259311]
[1760177917331,0.07420859,111930.0,111920.0,0.93259311]
[1760177918527,0.08816859,111930.0,111920.0,0.92510311]
[1760177918931,0.11052859,111930.0,111920.0,0.92510311]
[1760177919532,0.01396,111910.0,111900.0,0.4500846]
[1760177919840,0.03632,111910.0,111900.0,0.06041]
[1760177920135,0.03632,111900.0,111890.0,0.84310569]
[1760177920437,0.4195901,111900.0,111890.0,0.51948569]
[1760177920836,0.0587901,111900.0,111890.0,0.60877879]
[1760177921136,0.0587901,111900.0,111890.0,0.96957879]
[1760177921338,0.0587901,111900.0,111890.0,0.17053488]
[1760177921339,0.4587901,111900.0,111890.0,0.17053488]
[1760177922031,0.8195901,111900.0,111890.0,0.04406178]
[1760177922234,0.03565,111890.0,111880.0,0.36089957]
[1760177922433,0.0581201,111890.0,111880.0,0.40554209]
[1760177922927,0.0581201,111890.0,111880.0,0.49484319]
[1760177923538,0.0581201,111890.0,111880.0,0.40554209]
[1760177924231,0.0581201,111890.0,111880.0,0.04474209]
[1760177924232,0.4581201,111890.0,111880.0,0.04474209]
[1760177924536,0.9082132,111890.0,111880.0,0.04474209]
[1760177926638,0.98112633,111890.0,111880.0,0.04474209]
[1760177927735,0.98112633,111890.0,111840.0,0.35335518]
[1760177927736,0.01274,111850.0,111840.0,0.4726792]
[1760177927941,0.03565,111850.0,111840.0,0.4726792]
[1760177928135,0.03565,111850.0,111840.0,0.5098592]
[1760177928737,0.03574957,111850.0,111840.0,0.5098592]
[1760177928938,0.03574957,111850.0,111840.0,0.5108592]
[1760177929338,0.03574957,111850.0,111840.0,0.5118592]
[1760177929739,9.957e-05,111850.0,111840.0,1.27270438]
[1760177930340,0.10895299,111850.0,111840.0,1.26521438]
[1760177930541,0.08604299,111850.0,111840.0,1.26521438]
[1760177930747,0.03574957,111850.0,111840.0,0.86521438]
[1760177931245,0.03574957,111850.0,111840.0,0.91080335]
[1760177931447,0.03574957,111850.0,111840.0,0.55744817]
[1760177934047,0.08529273,111850.0,111840.0,0.55744817]
[1760177934253,9.957e-05,111850.0,111840.0,1.31829335]
[1760177935249,9.957e-05,111850.0,111840.0,0.95744817]
[1760177935454,0.01304957,111850.0,111840.0,0.95744817]
[1760177935755,0.03580957,111850.0,111840.0,0.95744817]
[1760177936056,0.03580957,111850.0,111840.0,0.55744817]
[1760177937457,0.43580957,111850.0,111840.0,0.44556897]
[1760177937651,0.43580957,111850.0,111840.0,0.55597197]
[1760177937851,0.10726241,111850.0,111840.0,0.55597197]
[1760177938953,0.10726241,111850.0,111840.0,0.55497197]
[1760177939458,0.10726241,111850.0,111840.0,0.55397197]
[1760177940259,0.50726241,111850.0,111840.0,0.49572197]
[1760177940654,0.86806241,111850.0,111840.0,0.13492197]
[1760177941359,0.10726241,111850.0,111840.0,0.19317197]
[1760177941551,0.50726241,111850.0,111840.0,0.13492197]
[1760177942455,0.50726241,111850.0,111840.0,0.04558897]
[1760177942656,0.03571,111830.0,111820.0,0.4501444]
[1760177942851,0.03571,111820.0,111810.0,0.4712217]
[1760177943258,0.03571,111820.0,111810.0,0.5084017]
[1760177943653,0.03571,111820.0,111810.0,0.53172105]
[1760177943860,0.885859,111820.0,111810.0,0.08156935]
[1760177944059,0.79658846,111820.0,111810.0,0.08156935]
[1760177944260,0.79658846,111820.0,111810.0,0.04438935]
[1760177944450,0.01295,111810.0,111800.0,0.36086871]
[1760177944651,0.03571,111810.0,111800.0,0.50848371]
[1760177945261,0.03571,111810.0,111800.0,0.14768371]
[1760177945463,0.03571,111810.0,111800.0,0.50848371]
[1760177945661,0.03371,111810.0,111800.0,0.50848371]
[1760177946153,0.03371,111810.0,111800.0,0.50948371]
[1760177946459,0.03371,111810.0,111800.0,0.51048371]
[1760177946860,0.10493822,111810.0,111800.0,0.51048371]
[1760177947062,0.90607125,111810.0,111800.0,0.04675289]
[1760177949065,0.90607125,111810.0,111800.0,0.04575289]
[1760177949458,0.90607125,111810.0,111800.0,0.04475289]
[1760177950961,0.97762112,111810.0,111800.0,0.04475289]
[1760177952865,0.03571,111790.0,111780.0,0.0893774]
[1760177953165,0.485883,111790.0,111780.0,0.03718]
[1760177953366,0.03571,111780.0,111770.0,0.089387]
[1760177953664,0.03571,111780.0,111770.0,0.126567]
[1760177953858,0.03580952,111780.0,111770.0,0.126567]
[1760177954460,0.03480952,111780.0,111770.0,0.126567]
[1760177954965,0.03480952,111780.0,111770.0,0.19225099]
[1760177955165,0.03380952,111780.0,111770.0,0.19225099]
[1760177955366,0.03380952,111780.0,111770.0,0.19325099]
[1760177955767,0.03380952,111780.0,111770.0,0.95505099]
[1760177956062,0.02276,111790.0,111780.0,0.119941]
[1760177956266,0.02276,111790.0,111780.0,0.517921]
[1760177956762,0.03571,111790.0,111780.0,0.508431]
[1760177956966,0.02282876,111790.0,111780.0,0.920381]
[1760177957666,0.03577876,111790.0,111780.0,0.921381]
[1760177958264,0.03577876,111790.0,111780.0,0.922381]
[1760177958561,0.03577876,111790.0,111780.0,0.510431]
[1760177959162,0.12515176,111790.0,111780.0,0.42105]
[1760177959366,0.12515176,111790.0,111780.0,0.06025]
[1760177959866,0.03577876,111790.0,111780.0,0.149631]
[1760177961269,0.05786095,111790.0,111780.0,0.149631]
[1760177962167,0.03577876,111790.0,111780.0,0.149631]
[1760177962469,0.05786475,111790.0,111780.0,0.149631]
[1760177962870,0.14723775,111790.0,111780.0,0.149631]
[1760177964069,0.14723775,111790.0,111780.0,0.03918]
[1760177964470,0.14723775,111790.0,111780.0,0.06083]
[1760177964671,0.14723775,111790.0,111780.0,0.03918]
[1760177965871,0.14723775,111790.0,111780.0,0.128561]
[1760177966171,0.05786475,111790.0,111780.0,0.128561]
[1760177966367,0.05786475,111790.0,111780.0,0.150211]
[1760177966868,0.45786475,111790.0,111780.0,0.128561]
[1760177967771,0.81866475,111790.0,111780.0,0.128561]
[1760177968270,0.41866475,111790.0,111780.0,0.150211]
[1760177969473,0.50803775,111790.0,111780.0,0.150211]
[1760177969971,0.50803775,111790.0,111780.0,0.06083]
[1760177970767,0.50803775,111790.0,111780.0,0.03918]
[1760177971474,0.90803775,111790.0,111780.0,0.002]
[1760177972171,0.94005799,111790.0,111780.0,0.002]
[1760177972568,0.90803775,111790.0,111780.0,0.002]
[1760177972764,0.50803775,111790.0,111780.0,0.03918]
[1760177973173,0.54005799,111790.0,111780.0,0.03918]
[1760177973366,0.50803775,111790.0,111780.0,0.03918]
[1760177974173,0.54005799,111790.0,111780.0,0.03918]
[1760177974473,0.50803775,111790.0,111780.0,0.03918]
[1760177975273,0.54005799,111790.0,111780.0,0.03918]
[1760177975472,0.08988499,111790.0,111780.0,0.150211]
[1760177975670,0.05786475,111790.0,111780.0,0.911011]
[1760177975871,1e-08,111800.0,111790.0,0.123793]
[1760177976073,1e-08,111800.0,111790.0,0.87512818]
[1760177976272,0.11966353,111810.0,111800.0,0.03442]
[1760177976273,0.09280987,111810.0,111800.0,0.03442]
[1760177976472,0.46693987,111810.0,111800.0,0.02165]
[1760177977374,0.03459,111790.0,111780.0,0.02265]
[1760177977777,0.03459,111790.0,111780.0,0.05983]
[1760177978178,0.03459,111790.0,111780.0,0.05883]
[1760177978784,0.123963,111790.0,111780.0,0.05983]
[1760177978975,0.123963,111790.0,111780.0,0.03818]
[1760177978976,0.484763,111790.0,111780.0,0.03818]
[1760177979481,0.39539,111790.0,111780.0,0.03818]
[1760177979779,0.39539,111790.0,111780.0,0.06083]
[1760177981077,0.39539,111790.0,111780.0,0.163541]
[1760177981274,0.02126,111790.0,111780.0,0.524341]
[1760177981474,0.02126,111790.0,111780.0,0.163541]
[1760177981670,0.02126,111790.0,111780.0,0.07416]
[1760177981671,0.03405,111790.0,111780.0,0.07416]
[1760177981883,0.03405,111790.0,111780.0,0.06083]
[1760177982179,0.39485,111790.0,111780.0,0.06083]
[1760177982474,0.484223,111790.0,111780.0,0.03918]
[1760177982679,0.484223,111790.0,111780.0,0.002]
[1760177983085,0.39485,111790.0,111780.0,0.112871]
[1760177983282,0.02126,111790.0,111780.0,0.163381]
[1760177983791,0.02126,111790.0,111780.0,0.524181]
[1760177984691,0.03405,111790.0,111780.0,0.163381]
[1760177984992,0.39485,111790.0,111780.0,0.150051]
[1760177985495,0.03405,111790.0,111780.0,0.150051]
[1760177985691,0.39485,111790.0,111780.0,0.150051]
[1760177987394,0.39485,111790.0,111780.0,0.06067]
[1760177987694,0.39485,111790.0,111780.0,0.150051]
[1760177987893,0.41626891,111790.0,111780.0,0.150051]
[1760177988399,0.50564191,111790.0,111780.0,0.06067]
[1760177988895,0.50564191,111790.0,111780.0,0.150051]
[1760177989593,0.50564191,111790.0,111780.0,0.06067]
[1760177990303,0.50564191,111790.0,111780.0,0.03918]
[1760177991006,0.50564191,111790.0,111780.0,0.06067]
[1760177991302,1.22019633,111790.0,111780.0,0.06067]
[1760177991503,0.50564191,111790.0,111780.0,0.06067]
[1760177991702,0.04267891,111790.0,111780.0,0.163381]
[1760177992300,0.04267891,111790.0,111780.0,0.563381]
[1760177993394,0.04267891,111790.0,111780.0,0.924181]
[1760177995007,0.02141891,111790.0,111780.0,1.33989105]
[1760177995207,1.89015911,111810.0,111800.0,0.124875]
[1760177995410,1.85297911,111810.0,111800.0,0.124875]
[1760177995707,0.76487911,111810.0,111800.0,0.124875]
[1760177995903,0.3608,111820.0,111810.0,0.01392]
[1760177996103,0.3826,111820.0,111810.0,0.124867]
[1760177997007,0.3608,111820.0,111810.0,0.524867]
[1760177997999,0.3826,111820.0,111810.0,0.524867]
[1760177998205,0.484739,111820.0,111800.0,0.4640814]
[1760177998806,0.484739,111820.0,111810.0,0.02159]
[1760177999510,0.484739,111820.0,111800.0,0.37472]
[1760177999711,0.39539,111820.0,111800.0,0.4640843]
[1760178000114,0.484739,111820.0,111800.0,0.4640843]
[1760178000712,0.484739,111820.0,111810.0,0.02159]
[1760178001215,0.39539,111820.0,111810.0,0.110947]
[1760178001417,0.3826,111820.0,111810.0,0.124867]
[1760178001812,0.3826,111830.0,111820.0,0.124859]
[1760178002015,0.3826,111840.0,111830.0,0.124851]
[1760178002817,0.3826,111840.0,111830.0,0.02159]
[1760178002818,0.4719331,111840.0,111830.0,0.02159]
[1760178003111,0.4852731,111840.0,111820.0,0.1032687]
[1760178003418,0.4862731,111840.0,111820.0,0.1032687]
[1760178003616,0.4862731,111840.0,111830.0,0.1248511]
[1760178003617,0.3836,111840.0,111830.0,0.1248511]
[1760178004512,0.3826,111840.0,111830.0,0.54056115]
[1760178004713,0.3846,111840.0,111830.0,0.54056115]
[1760178005317,0.3836,111840.0,111830.0,0.54056115]
[1760178005525,0.3846,111840.0,111830.0,0.54056115]
[1760178006219,0.3923,111840.0,111830.0,0.54056115]
[1760178006720,0.480633,111840.0,111820.0,0.1032661]
[1760178006914,0.481633,111840.0,111820.0,0.1032661]
[1760178007119,0.50289814,111840.0,111820.0,0.1032661]
[1760178007326,0.481633,111840.0,111820.0,0.1032661]
[1760178007526,0.481633,111840.0,111830.0,0.02159]
[1760178007828,0.479633,111840.0,111830.0,0.02159]
[1760178008025,0.3826,111840.0,111830.0,0.124851]
[1760178008528,0.6477,111840.0,111830.0,0.124851]
[1760178008825,0.6487,111840.0,111830.0,0.124851]
[1760178009028,0.2879,111840.0,111830.0,0.124851]
[1760178009222,0.001,111840.0,111830.0,0.94056105]
[1760178009526,0.002,111840.0,111830.0,0.94056105]
[1760178010228,0.0238,111840.0,111830.0,0.94056105]
[1760178010526,0.0238,111840.0,111830.0,0.54056105]
[1760178011022,0.113133,111840.0,111830.0,0.45122005]
[1760178011223,0.487273,111840.0,111820.0,0.1032633]
[1760178011526,0.0218,111830.0,111820.0,0.1248533]
[1760178012025,0.471941,111830.0,111820.0,0.1248533]
[1760178012524,0.3826,111830.0,111820.0,0.1248533]
[1760178013119,0.471941,111830.0,111820.0,0.03551]
[1760178013422,0.3826,111830.0,111820.0,0.03551]
[1760178013622,0.39539,111830.0,111820.0,0.03551]
[1760178013929,0.39639,111830.0,111820.0,0.03551]
[1760178014127,0.485731,111830.0,111820.0,0.03551]
[1760178014523,0.486731,111830.0,111820.0,0.03551]
[1760178014728,0.0218,111820.0,111810.0,0.03551]
[1760178014929,0.0218,111820.0,111810.0,0.124867]
[1760178015529,0.0218,111820.0,111810.0,0.485667]
[1760178016028,0.0218,111820.0,111810.0,0.39631]
[1760178017626,0.3826,111830.0,111820.0,0.01392]
[1760178017930,0.49371849,111830.0,111820.0,0.03551]
[1760178018133,0.50650849,111830.0,111820.0,0.02159]
[1760178018828,0.50650849,111830.0,111810.0,0.87978705]
[1760178019031,0.49471849,111830.0,111820.0,0.03551]
[1760178019332,0.50750849,111830.0,111810.0,0.87978705]
[1760178019931,0.49571849,111830.0,111820.0,0.03551]
[1760178020530,0.49471849,111830.0,111820.0,0.03551]
[1760178020732,0.49371849,111830.0,111820.0,0.03551]
[1760178021333,0.49471849,111830.0,111820.0,0.03551]
[1760178022629,0.50850849,111830.0,111820.0,0.03551]
[1760178023836,0.50850849,111830.0,111820.0,0.02159]
[1760178024037,0.50850849,111830.0,111810.0,0.51898705]
[1760178024236,0.0214,111820.0,111810.0,0.54034705]
[1760178024639,0.04317749,111820.0,111810.0,0.54034705]
[1760178024833,0.04317749,111820.0,111810.0,0.90114705]
[1760178024834,0.02177749,111820.0,111810.0,0.90114705]
[1760178025034,0.002,111830.0,111820.0,0.123679]
[1760178025333,0.002,111830.0,111820.0,0.484479]
[1760178025538,0.07145284,111850.0,111820.0,0.973828]
[1760178025835,0.02184036,111850.0,111840.0,0.90017305]
[1760178026030,0.02184036,111850.0,111840.0,1.30017305]
[1760178026834,0.39283215,111870.0,111860.0,0.03433]
[1760178026835,0.3822,111870.0,111860.0,0.03433]
[1760178027040,0.40403552,111870.0,111860.0,0.03433]
[1760178027637,0.49334462,111870.0,111860.0,0.03433]
[1760178028133,0.56351292,111870.0,111860.0,0.03433]
[1760178028341,0.97636292,111870.0,111850.0,0.1022898]
[1760178028541,0.57636292,111870.0,111850.0,0.14711431]
[1760178029034,0.4816971,111860.0,111850.0,0.06618451]
[1760178029240,0.04323552,111860.0,111850.0,0.16847961]
[1760178029643,0.40403552,111860.0,111850.0,0.16847961]
[1760178030638,0.40603552,111860.0,111850.0,0.16847961]
[1760178031344,0.02383552,111860.0,111850.0,0.52927961]
[1760178031738,0.02383552,111860.0,111850.0,0.92927961]
[1760178033240,0.00181628,111860.0,111850.0,0.92927961]
[1760178034449,0.00181628,111860.0,111850.0,1.34498966]
[1760178035244,0.4501016,111880.0,111860.0,0.0893132]
[1760178035545,0.0214,111870.0,111860.0,0.53935325]
[1760178036542,0.45274066,111880.0,111870.0,0.1236391]
[1760178036745,0.45274066,111880.0,111870.0,0.53934915]
[1760178040048,0.45274066,111880.0,111870.0,0.45004005]
[1760178040248,0.45274066,111880.0,111870.0,0.03433]
[1760178040550,0.45274066,111880.0,111870.0,0.123639]
[1760178040746,0.45274066,111880.0,111870.0,0.53934905]
[1760178041443,0.43134066,111880.0,111870.0,0.53934905]
[1760178041648,0.45274066,111880.0,111870.0,0.53934905]
[1760178042046,0.54204176,111880.0,111870.0,0.45004005]
[1760178043850,0.1116391,111870.0,111860.0,0.03426]
[1760178044150,0.4724391,111870.0,111860.0,0.03426]
[1760178045150,0.49402347,111870.0,111860.0,0.03426]
[1760178048755,0.04391437,111870.0,111860.0,0.484377]
[1760178048951,0.51121959,111880.0,111870.0,0.03454]
[1760178049346,0.07054066,111880.0,111870.0,0.5238491]
[1760178049552,0.3608,111890.0,111880.0,0.01325]
[1760178049751,0.3608,111890.0,111880.0,0.03454]
[1760178050050,0.38313,111890.0,111880.0,0.03454]
[1760178051047,0.38313,111890.0,111880.0,0.1238411]
[1760178051252,0.1116151,111900.0,111890.0,0.03454]
[1760178051448,0.09487221,111900.0,111890.0,0.1238331]
[1760178051751,1.07094574,111910.0,111890.0,0.8846331]
[1760178051956,1.18255284,111910.0,111900.0,0.03454]
[1760178052955,1.18255284,111910.0,111900.0,0.39534]
[1760178052956,0.73247574,111910.0,111900.0,0.39534]
[1760178053150,0.73247574,111910.0,111900.0,0.4846251]
[1760178053349,0.71014574,111910.0,111900.0,0.4846251]
[1760178053547,0.38322,111920.0,111910.0,0.03505]
[1760178053747,0.4724892,111920.0,111910.0,0.03505]
[1760178053958,1.16914709,111920.0,111910.0,0.03505]
[1760178054157,0.4724892,111920.0,111910.0,0.03505]
[1760178054456,0.1116892,111920.0,111910.0,0.03505]
[1760178054657,0.09524916,111920.0,111910.0,0.03505]
[1760178054859,0.09524916,111920.0,111910.0,0.39585]
[1760178055161,0.09524916,111920.0,111910.0,0.03505]
[1760178055457,0.09624916,111920.0,111910.0,0.03505]
[1760178055658,0.09724916,111920.0,111910.0,0.03505]
[1760178056960,0.09724916,111920.0,111910.0,0.1243271]
[1760178057156,0.09724916,111920.0,111910.0,0.4851271]
[1760178057361,0.09724916,111920.0,111910.0,0.1243271]
[1760178057563,0.82061369,111920.0,111910.0,0.1243271]
[1760178057859,0.02442,111920.0,111910.0,0.4851271]
[1760178058059,0.02442,111920.0,111910.0,0.1243271]
[1760178058359,0.09457849,111920.0,111910.0,0.1243271]
[1760178059256,0.18384769,111920.0,111910.0,0.03505]
[1760178059452,0.09457849,111920.0,111910.0,0.1243271]
[1760178059656,0.09457849,111920.0,111910.0,0.4851271]
[1760178059858,0.09457849,111920.0,111910.0,0.1243271]
[1760178060954,0.1160586,111920.0,111910.0,0.1243271]
[1760178061464,0.5789778,111920.0,111910.0,0.02147]
[1760178061657,0.1160586,111920.0,111910.0,0.1243271]
[1760178061854,0.82142747,111920.0,111910.0,0.4851271]
[1760178062055,0.04590011,111920.0,111910.0,0.1243271]
[1760178062259,0.04590011,111920.0,111910.0,0.4851271]
[1760178062659,0.04589719,111920.0,111910.0,0.4851271]
[1760178063061,0.20788143,111920.0,111910.0,0.39585]
[1760178063258,0.13516639,111920.0,111910.0,0.39585]
[1760178064062,0.04589719,111920.0,111910.0,0.4851272]
[1760178064366,0.02347719,111920.0,111910.0,0.8851272]
[1760178064558,0.002,111920.0,111910.0,0.8851272]
[1760178065163,0.71765245,111920.0,111910.0,0.8851272]
[1760178065362,0.002,111920.0,111910.0,0.8851272]
[1760178066263,0.02442,111920.0,111910.0,0.79585]
[1760178066566,0.02442,111920.0,111910.0,0.8851271]
[1760178067866,0.02442,111920.0,111910.0,0.79585]
[1760178068067,0.02442,111920.0,111910.0,0.8851271]
[1760178069170,0.002,111920.0,111910.0,0.8851271]
[1760178069369,0.72622143,111920.0,111910.0,0.8851271]
[1760178069570,0.74864143,111920.0,111910.0,0.8851271]
[1760178070567,0.02442,111920.0,111910.0,0.8851271]
[1760178070762,0.002,111920.0,111910.0,0.8851271]
[1760178072465,0.3608,111940.0,111910.0,0.8851271]
[1760178072665,0.7484257,111980.0,111960.0,0.03505]
[1760178072870,0.69842571,111980.0,111970.0,0.1242793]
[1760178073067,0.3705,112000.0,111970.0,0.4850793]
[1760178073271,0.02242,111990.0,111980.0,0.47765969]
[1760178073470,0.03212,112000.0,111990.0,0.1242634]
[1760178073674,0.02242,112000.0,111990.0,0.03505]
[1760178073873,0.3965,112000.0,111990.0,0.02147]
[1760178074270,1.20741153,112000.0,111990.0,0.02147]
[1760178074471,0.8857054,112000.0,111990.0,0.04400546]
[1760178074671,0.8857054,112000.0,111980.0,0.36696839]
[1760178074872,0.0357,111990.0,111980.0,0.38843839]
[1760178075375,0.0367,111990.0,111980.0,0.47765969]
[1760178075574,0.0367,111990.0,111980.0,0.51497678]
[1760178075977,0.02242,111990.0,111980.0,0.87577678]
[1760178076479,0.09572628,112000.0,111990.0,0.1242634]
[1760178076678,0.81828876,112000.0,111990.0,0.4850634]
[1760178076880,0.02242,112000.0,111990.0,0.4850634]
[1760178077671,0.02242,112010.0,112000.0,0.0892054]
[1760178077873,0.02242,112010.0,112000.0,0.1242554]
[1760178078179,0.02242,112010.0,112000.0,0.47764379]
[1760178078681,0.38322,112020.0,112010.0,0.03505]
[1760178079586,0.38322,112020.0,112010.0,0.1242475]
[1760178079881,0.4724095,112020.0,112010.0,0.03505]
[1760178080078,0.4734095,112020.0,112010.0,0.03505]
[1760178080280,0.0377,112020.0,112010.0,0.03505]
[1760178080478,0.10990775,112020.0,112010.0,0.03505]
[1760178080781,0.81407613,112020.0,112010.0,0.03505]
[1760178081685,0.81407613,112020.0,112010.0,0.39585]
[1760178081885,0.90326563,112020.0,112010.0,0.39585]
[1760178082086,0.81407613,112020.0,112010.0,0.4850475]
[1760178082285,0.81407613,112020.0,112010.0,0.39585]
[1760178083289,0.80079613,112020.0,112010.0,0.83843589]
[1760178084188,0.07369789,112020.0,112010.0,1.23843589]
[1760178085292,0.07220775,112020.0,112010.0,1.23843589]
[1760178085494,0.02104,112030.0,112020.0,0.0369]
[1760178085791,0.02104,112030.0,112020.0,0.3977]
[1760178086897,0.02304,112030.0,112020.0,0.3977]
[1760178087593,0.37408,112040.0,112030.0,0.0137]
[1760178087795,0.1102135,112040.0,112030.0,0.0369]
[1760178087996,0.02104,112040.0,112030.0,0.1260815]
[1760178089000,0.02204,112040.0,112030.0,0.1260815]
[1760178089195,0.78116869,112040.0,112030.0,0.1260815]
[1760178089400,0.02204,112040.0,112030.0,0.1260815]
[1760178093798,0.91521848,112040.0,112020.0,0.0137]
[1760178094001,0.38915,112040.0,112020.0,0.0137]
[1760178094200,0.02104,112030.0,112020.0,0.0369]
[1760178094400,0.1102215,112030.0,112020.0,0.0369]
[1760178094698,0.02104,112030.0,112020.0,0.0369]
[1760178095799,0.1102215,112030.0,112020.0,0.0369]
[1760178096008,0.4842315,112030.0,112010.0,0.72776839]
[1760178096900,0.4842315,112030.0,112020.0,0.0232]
[1760178097395,0.4842315,112030.0,112010.0,0.72776839]
[1760178097396,0.8842315,112030.0,112010.0,0.72776839]
[1760178097707,0.02104,112010.0,112000.0,0.03678]
[1760178098004,0.02104,112010.0,112000.0,0.1259854]
[1760178099006,0.02104,112010.0,112000.0,0.47937379]
[1760178099811,0.02104,112010.0,112000.0,0.84017379]
[1760178100499,0.02158,112020.0,112010.0,0.03578]
[1760178102209,0.04249223,112020.0,112010.0,0.03578]
[1760178102908,0.02091223,112020.0,112010.0,0.1249774]
[1760178103301,0.02091223,112020.0,112010.0,0.4857774]
[1760178103510,0.04249223,112020.0,112010.0,0.4857774]
[1760178104507,0.02091223,112020.0,112010.0,0.4857774]
[1760178104810,0.04249223,112020.0,112010.0,0.4857774]
[1760178105613,0.02091223,112020.0,112010.0,0.4857774]
[1760178106617,0.02158,112030.0,112020.0,0.1249648]
[1760178106816,0.04248159,112030.0,112020.0,0.83915319]
[1760178107217,0.02090159,112030.0,112020.0,0.83915319]
[1760178108916,0.02158,112040.0,112030.0,0.1249615]
[1760178109518,0.09151342,112040.0,112030.0,0.53873903]
[1760178109717,0.73075908,112040.0,112030.0,0.53873903]
[1760178110016,0.02158,112040.0,112030.0,0.53873903]
[1760178112320,0.02158,112040.0,112030.0,0.89953903]
[1760178112919,0.09297585,112040.0,112030.0,0.89953903]
[1760178113118,0.07139585,112040.0,112030.0,1.29953903]
[1760178113321,0.3608,112060.0,112050.0,0.1246856]
[1760178113517,0.3608,112060.0,112050.0,0.53846313]
[1760178113718,0.38183,112060.0,112050.0,0.53846313]
[1760178114216,0.3608,112060.0,112050.0,0.53846313]
[1760178114816,0.01321,112050.0,112040.0,0.3608]
[1760178115016,0.1102035,112040.0,112020.0,0.04768337]
[1760178115213,0.1102274,112010.0,112000.0,0.01377974]
[1760178115419,0.8450374,112010.0,112000.0,6.974e-05]
[1760178115719,0.1102434,111990.0,111980.0,0.03731709]
[1760178115922,0.4710434,111990.0,111970.0,0.01371]
[1760178116221,0.38183,111980.0,111970.0,0.03552]
[1760178116722,0.00631,112000.0,111990.0,0.03552]
[1760178116723,0.4710354,112000.0,111990.0,0.03552]
[1760178116917,0.1102354,112000.0,111990.0,0.03552]
[1760178117222,0.02103,112000.0,111990.0,0.03552]
[1760178117416,0.1102354,112000.0,111990.0,0.03552]
[1760178117612,0.18105022,112000.0,111990.0,0.03552]
[1760178118619,0.58105022,112000.0,111990.0,0.03552]
[1760178118825,0.1102434,111990.0,111980.0,0.84691552]
[1760178119022,0.02103,111990.0,111980.0,0.84691552]
[1760178119227,0.54185402,112000.0,111990.0,0.03552]
[1760178119722,0.18105402,112000.0,111990.0,0.03552]
[1760178120419,0.16002022,112000.0,111990.0,0.03552]
[1760178120626,0.1102434,111990.0,111980.0,0.07233799]
[1760178120824,0.4710434,111990.0,111980.0,0.48611552]
[1760178121020,0.49158156,111990.0,111980.0,0.48611552]
[1760178121216,0.13078156,111990.0,111980.0,0.48611552]